bitfinex/quotes_SOLUSD_20250410
["timestamp","ask_amount","ask_price","bid_price","bid_amount"]
[1744256904059,8.6877,115.11,115.06,15.98191107]
[1744256904259,24.66961107,115.11,115.06,15.98191107]
[1744256904946,24.66961107,115.11,115.05,24.67331107]
[1744256905853,24.67031107,115.1,115.05,24.67331107]
[1744256906048,8.6884,115.1,115.05,24.67331107]
[1744256906453,18.933972,115.09,115.04,8.62]
[1744256906652,34.91588307,115.09,115.04,24.60191107]
[1744256906861,34.91588307,115.09,115.04,33.29441107]
[1744256907856,8.6896,115.08,115.04,33.29441107]
[1744256908671,8.6892,115.09,115.05,15.98191107]
[1744256909841,8.688,115.1,115.05,24.67341107]
[1744256910849,43.60348307,115.11,115.06,15.98191107]
[1744256911046,27.621572,115.11,115.06,17.60821107]
[1744256911246,8.6876,115.11,115.06,17.60821107]
[1744256911443,8.6876,115.11,115.07,15.98191107]
[1744256911650,8.6876,115.11,115.06,17.60821107]
[1744256911959,8.6876,115.11,115.06,26.29891107]
[1744256912963,8.97242314,115.1,115.05,10.3177]
[1744256913154,24.95433421,115.1,115.05,10.3177]
[1744256913346,24.95433421,115.1,115.05,26.29961107]
[1744256913544,8.6876,115.11,115.06,15.98191107]
[1744256913763,24.66951107,115.11,115.06,15.98191107]
[1744256913943,18.933972,115.1,115.05,26.29961107]
[1744256914965,24.66951107,115.11,115.06,15.98191107]
[1744256916666,24.66951107,115.11,115.06,24.67281107]
[1744256918451,8.6876,115.11,115.06,24.67281107]
[1744256918763,8.6876,115.11,115.07,24.67211107]
[1744256918950,8.6843,115.15,115.1,15.98191107]
[1744256919152,0.03,115.16,115.14,15.98191107]
[1744256919742,0.03,115.16,115.15,15.98191107]
[1744256920177,0.03,115.16,115.14,15.98191107]
[1744256920750,0.03,115.16,115.15,15.98191107]
[1744256921054,0.03,115.16,115.14,15.98191107]
[1744256922068,0.03,115.16,115.13,8.6852]
[1744256922275,0.03,115.16,115.14,15.98191107]
[1744256922570,0.03,115.16,115.15,15.98191107]
[1744256923469,0.03,115.16,115.13,8.6852]
[1744256923775,0.03,115.16,115.14,15.98191107]
[1744256924475,0.03,115.16,115.13,15.98191107]
[1744256924772,0.03,115.16,115.13,24.66761107]
[1744256928153,0.03,115.16,115.15,15.98191107]
[1744256929970,0.03,115.16,115.15,24.66621107]
[1744256931160,0.03,115.16,115.15,15.98191107]
[1744256931366,0.03,115.16,115.12,98.4861]
[1744256931669,0.03,115.16,115.12,33.26801107]
[1744256932163,15.98191107,115.14,115.09,33.27031107]
[1744256932370,15.98191107,115.14,115.09,17.2884]
[1744256932962,15.98191107,115.14,115.09,33.27031107]
[1744256933165,8.685,115.14,115.09,33.27031107]
[1744256933366,24.66691107,115.14,115.09,17.2884]
[1744256933568,24.66691107,115.14,115.09,33.27031107]
[1744256933963,24.66691107,115.14,115.09,24.58191107]
[1744256934161,34.91588307,115.13,115.09,8.6]
[1744256935583,8.6865,115.12,115.09,8.6]
[1744256937880,43.60198307,115.13,115.09,17.2887]
[1744256938080,27.620072,115.13,115.09,17.2887]
[1744256939482,27.618672,115.15,115.11,15.98191107]
[1744256939664,0.03,115.16,115.12,15.98191107]
[1744256940070,27.50541043,115.16,115.11,24.66861107]
[1744256940479,0.03,115.16,115.12,15.98191107]
[1744256941175,0.03,115.16,115.13,15.98191107]
[1744256941565,0.03,115.16,115.13,24.66721107]
[1744256941971,0.03,115.16,115.12,24.66801107]
[1744256943666,34.94588307,115.16,115.1,24.66991107]
[1744256943869,15.98191107,115.14,115.1,8.688]
[1744256944069,15.98191107,115.14,115.09,17.2885]
[1744256944294,16.26623421,115.13,115.09,8.6]
[1744256945184,22.36143421,115.13,115.09,8.6]
[1744256945563,31.04793421,115.13,115.09,8.6]
[1744256945765,6.0952,115.13,115.1,15.98191107]
[1744256946384,6.0952,115.13,115.09,33.27061107]
[1744256948391,15.98191107,115.15,115.1,15.98191107]
[1744256948581,0.03,115.16,115.11,15.98191107]
[1744256948582,34.94588307,115.16,115.11,15.98191107]
[1744256948969,43.62978307,115.16,115.1,15.98191107]
[1744256949988,18.64964886,115.13,115.09,8.6]
[1744256950175,15.98191107,115.13,115.09,8.6]
[1744256950379,16.26623421,115.14,115.09,33.27071107]
[1744256950583,8.6858,115.13,115.09,33.27071107]
[1744256951887,27.33544886,115.13,115.09,24.58191107]
[1744256952085,18.933972,115.11,115.06,306.7107]
[1744256952283,15.98191107,115.1,115.03,8.643]
[1744256952595,15.98191107,115.1,115.05,15.98191107]
[1744256953096,34.91588307,115.11,115.06,15.98191107]
[1744256954197,8.688,115.1,115.06,15.98191107]
[1744256954992,24.66991107,115.1,115.04,24.67411107]
[1744256955295,18.933972,115.09,115.05,15.98191107]
[1744256956179,43.60478307,115.09,115.04,15.98191107]
[1744256956996,27.622872,115.09,115.04,15.98191107]
[1744256957701,43.60478307,115.09,115.03,24.62491107]
[1744256958400,18.933972,115.07,115.03,24.62491107]
[1744256958574,6.1849,115.06,115.03,0.063]
[1744256958774,18.933972,115.05,115.03,0.063]
[1744256960482,27.626172,115.05,115.03,0.063]
[1744256960684,6.1849,115.06,115.03,0.063]
[1744256961303,6.1849,115.06,115.03,16.04491107]
[1744256961684,18.933972,115.07,115.04,15.98191107]
[1744256962179,8.69,115.08,115.04,15.98191107]
[1744256962603,8.69,115.08,115.04,24.67441107]
[1744256966099,8.69,115.08,115.03,16.04491107]
[1744256967112,41.10078307,115.09,115.04,24.67451107]
[1744256967286,25.118872,115.09,115.05,15.98191107]
[1744256967491,41.10078307,115.09,115.04,24.67451107]
[1744256968908,49.78968307,115.09,115.04,24.67451107]
[1744256969417,27.623572,115.08,115.03,24.73781107]
[1744256969625,43.60548307,115.08,115.03,24.73781107]
[1744256970309,27.623572,115.08,115.03,24.73781107]
[1744256970685,30.85601107,115.09,115.04,15.98191107]
[1744256971710,30.85601107,115.09,115.03,8.7559]
[1744256971929,30.85601107,115.09,115.03,24.73781107]
[1744256972608,6.1849,115.09,115.05,8.6918]
[1744256972922,14.8739,115.09,115.05,24.67371107]
[1744256973218,14.8739,115.09,115.05,8.6918]
[1744256974034,30.85581107,115.09,115.04,24.67411107]
[1744256974816,30.85581107,115.09,115.04,8.6922]
[1744256975016,30.85581107,115.09,115.04,24.67411107]
[1744256975424,18.64964886,115.06,115.03,0.063]
[1744256975736,0.28432314,115.08,115.03,0.063]
[1744256976037,0.28432314,115.05,115.03,0.063]
[1744256977045,43.60848307,115.04,115.03,0.063]
[1744256977727,16.26623421,115.05,115.03,0.063]
[1744256977930,18.933972,115.04,115.03,0.063]
[1744256978813,27.626572,115.04,115.03,0.063]
[1744256979227,8.6922,115.05,115.03,0.063]
[1744256979652,24.67411107,115.05,115.03,0.063]
[1744256979820,18.933972,115.04,115.03,0.063]
[1744256980014,41.09718307,115.04,115.03,0.063]
[1744256980732,14.8739,115.04,115.03,0.063]
[1744256983128,8.6924,115.05,115.03,0.063]
[1744256984349,18.933972,115.04,115.03,0.063]
[1744256984656,34.91588307,115.04,115.03,0.063]
[1744256984945,8.6924,115.05,115.03,0.063]
[1744256985656,24.67431107,115.05,115.03,0.063]
[1744256986547,8.6924,115.05,115.03,0.063]
[1744256986924,27.625372,115.06,115.03,0.063]
[1744256987119,14.7092,115.07,115.03,0.063]
[1744256987326,33.35884886,115.07,115.03,0.063]
[1744256987620,27.34024886,115.07,115.03,10.32951594]
[1744256988221,8.6906,115.07,115.03,10.32951594]
[1744256988420,8.6906,115.07,115.03,19.02221594]
[1744256989155,8.689,115.09,115.04,10.26651594]
[1744256989337,8.689,115.09,115.04,16.0349664]
[1744256990323,8.689,115.09,115.05,8.6918]
[1744256990528,8.689,115.09,115.05,24.7267664]
[1744256991936,30.7419664,115.1,115.05,24.7267664]
[1744256992133,14.707,115.1,115.05,24.7267664]
[1744256992336,8.6884,115.1,115.05,24.7267664]
[1744256993152,8.6884,115.1,115.06,16.0349664]
[1744256993841,8.6884,115.1,115.06,24.7256664]
[1744256995351,8.6884,115.1,115.05,26.3375664]
[1744256995556,24.7233664,115.1,115.05,26.3375664]
[1744256996557,24.7233664,115.1,115.05,10.3026]
[1744256996751,24.7222664,115.11,115.05,26.3375664]
[1744256999941,0.03,115.14,115.07,16.0349664]
[1744257000148,26.0,115.13,115.09,16.0349664]
[1744257000342,8.7154,115.14,115.09,16.0349664]
[1744257000549,18.933972,115.13,115.07,8.58]
[1744257000755,24.7503664,115.14,115.09,16.0349664]
[1744257001549,18.933972,115.13,115.08,16.0349664]
[1744257001953,8.6865,115.12,115.08,24.7243664]
[1744257002150,8.6865,115.12,115.07,8.58]
[1744257002436,16.31928954,115.11,115.07,8.58]
[1744257002654,16.0349664,115.1,115.07,8.58]
[1744257002957,16.0349664,115.1,115.05,1.6111]
[1744257003161,0.28432314,115.11,115.05,26.3378664]
[1744257003354,0.28432314,115.11,115.06,16.0349664]
[1744257003663,24.7214664,115.12,115.07,16.0349664]
[1744257004035,24.7214664,115.12,115.08,8.6896]
[1744257004862,27.620072,115.13,115.08,24.7245664]
[1744257005062,43.6550384,115.13,115.08,24.7245664]
[1744257006760,43.6550384,115.13,115.08,16.0349664]
[1744257006963,43.6550384,115.13,115.07,33.3048664]
[1744257007260,16.0349664,115.12,115.07,24.6149664]
[1744257008035,16.0349664,115.11,115.07,8.58]
[1744257008239,16.0349664,115.09,115.05,1.6111]
[1744257008966,8.6896,115.08,115.05,1.6111]
[1744257009272,16.31928954,115.1,115.05,26.3376664]
[1744257009462,0.28432314,115.1,115.05,26.3376664]
[1744257009771,16.0349664,115.11,115.06,16.0349664]
[1744257009949,8.6875,115.11,115.07,16.0349664]
[1744257011171,8.6875,115.11,115.06,24.7254664]
[1744257011343,24.7224664,115.11,115.06,24.7254664]
[1744257011543,24.7224664,115.11,115.06,16.0349664]
[1744257011939,46.4407664,115.11,115.06,16.0349664]
[1744257012139,8.6875,115.11,115.07,16.0349664]
[1744257013057,8.6875,115.11,115.07,24.7249664]
[1744257013848,8.6875,115.11,115.07,16.0349664]
[1744257014867,18.933972,115.1,115.05,17.6460664]
[1744257015664,8.97162314,115.11,115.06,16.0349664]
[1744257017472,18.64964886,115.1,115.06,16.0349664]
[1744257017776,18.64964886,115.1,115.05,26.3377664]
[1744257018360,18.64964886,115.1,115.06,16.0349664]
[1744257018540,27.33824886,115.1,115.06,24.7260664]
[1744257019366,8.6886,115.1,115.06,24.7260664]
[1744257019676,8.6886,115.1,115.07,16.0349664]
[1744257020048,8.6886,115.1,115.06,16.0349664]
[1744257020949,27.33824886,115.1,115.05,1.6111]
[1744257021249,27.33824886,115.1,115.06,16.0349664]
[1744257022381,27.33824886,115.1,115.06,24.7259664]
[1744257023269,27.33824886,115.1,115.06,10.25815736]
[1744257025771,8.97192314,115.11,115.07,10.25815736]
[1744257025960,8.6858,115.13,115.09,10.25815736]
[1744257026277,8.7155,115.14,115.1,10.25815736]
[1744257026575,18.933972,115.13,115.09,10.25815736]
[1744257027275,18.933972,115.13,115.1,10.25815736]
[1744257027473,18.79181043,115.13,115.1,10.25815736]
[1744257027977,27.47831043,115.13,115.1,10.25815736]
[1744257028476,27.47831043,115.13,115.08,8.56]
[1744257028477,0.14216157,115.12,115.08,8.56]
[1744257029357,0.14216157,115.12,115.08,18.81815736]
[1744257029682,0.14216157,115.12,115.08,8.56]
[1744257029982,8.6873,115.11,115.08,8.56]
[1744257030277,8.6873,115.11,115.07,91.45815736]
[1744257030971,8.6865,115.12,115.08,10.25815736]
[1744257031170,8.6865,115.12,115.09,10.25815736]
[1744257031368,8.6865,115.12,115.06,8.6907]
[1744257031574,8.6865,115.12,115.08,10.25815736]
[1744257031772,8.6865,115.12,115.06,8.6907]
[1744257031974,8.6865,115.12,115.08,10.25815736]
[1744257032682,8.6865,115.12,115.08,18.94765736]
[1744257032983,27.47801043,115.13,115.09,10.25815736]
[1744257033160,27.47801043,115.13,115.08,8.6895]
[1744257033357,27.47801043,115.13,115.09,10.25815736]
[1744257035682,27.47801043,115.13,115.08,10.25815736]
[1744257036578,27.47801043,115.13,115.08,18.94755736]
[1744257036960,8.6862,115.13,115.09,10.25815736]
[1744257037579,8.6862,115.13,115.08,10.25815736]
[1744257039786,30.4007,115.13,115.08,10.25815736]
[1744257040285,40.65885736,115.13,115.07,18.81815736]
[1744257040468,40.65885736,115.13,115.07,27.50845736]
[1744257041185,40.65885736,115.13,115.08,10.25815736]
[1744257041186,30.4007,115.13,115.08,10.25815736]
[1744257041780,30.4007,115.13,115.08,18.94755736]
[1744257042585,30.4007,115.13,115.08,10.25815736]
[1744257043284,18.933972,115.12,115.07,18.81815736]
[1744257043466,29.19212936,115.12,115.07,8.56]
[1744257043969,8.6873,115.11,115.07,8.56]
[1744257044989,8.6873,115.11,115.07,18.81815736]
[1744257045191,8.6869,115.12,115.07,27.50815736]
[1744257047991,59.31110622,115.12,115.07,8.56]
[1744257048190,10.25815736,115.09,115.03,0.063]
[1744257048373,18.933972,115.08,115.03,10.32115736]
[1744257049292,8.6903,115.07,115.03,19.01445736]
[1744257049890,8.6903,115.07,115.04,10.25815736]
[1744257052370,8.6903,115.07,115.03,10.32115736]
[1744257052572,8.6903,115.07,115.04,10.25815736]
[1744257053503,29.19212936,115.1,115.04,18.95065736]
[1744257053678,8.6883,115.1,115.06,10.25815736]
[1744257053881,6.513,115.11,115.08,10.25815736]
[1744257054088,6.513,115.11,115.09,10.25815736]
[1744257054977,29.01224886,115.14,115.1,10.25815736]
[1744257056203,29.01224886,115.14,115.1,18.94605736]
[1744257056697,10.3626,115.14,115.1,18.94605736]
[1744257057099,10.3626,115.14,115.09,18.94655736]
[1744257057397,29.01224886,115.14,115.09,18.94655736]
[1744257058479,29.01224886,115.14,115.1,10.25815736]
[1744257058480,1.6772,115.14,115.1,10.25815736]
[1744257058885,10.3623,115.14,115.1,10.25815736]
[1744257059488,10.3623,115.14,115.09,18.94655736]
[1744257060699,0.03,115.14,115.1,10.25815736]
[1744257060994,0.03,115.14,115.11,10.25815736]
[1744257061296,0.03,115.14,115.1,10.25815736]
[1744257062186,8.7151,115.14,115.1,10.25815736]
[1744257062390,37.62290622,115.14,115.08,17.2292]
[1744257062690,37.62290622,115.14,115.08,27.48735736]
[1744257062997,37.62290622,115.14,115.09,10.25815736]
[1744257063790,27.36474886,115.14,115.09,10.25815736]
[1744257063992,27.36474886,115.14,115.1,8.688]
[1744257064406,0.03,115.14,115.11,10.25815736]
[1744257066214,0.03,115.14,115.11,18.94475736]
[1744257067399,0.03,115.14,115.13,36.25815736]
[1744257068291,0.0001,115.14,115.13,143.17389322]
[1744257068490,0.03,115.18,115.17,26.0]
[1744257068689,0.03,115.18,115.17,44.79815736]
[1744257069387,0.03,115.18,115.17,59.2189663]
[1744257070207,0.03,115.18,115.17,140.4189663]
[1744257072823,0.0001,115.18,115.17,159.3529383]
[1744257073510,0.03,115.21,115.17,224.4739383]
[1744257073708,0.03,115.21,115.2,15.9961663]
[1744257074294,0.03,115.23,115.21,15.9961663]
[1744257074493,0.03,115.23,115.21,33.1959663]
[1744257075192,0.03,115.23,115.21,114.3959663]
[1744257075603,0.03,115.23,115.21,98.3998]
[1744257076899,0.03,115.23,115.21,8.52]
[1744257078590,0.03,115.23,115.21,17.1998]
[1744257078817,0.03,115.23,115.21,8.52]
[1744257079532,16.0261663,115.22,115.17,115.72]
[1744257079819,15.9961663,115.21,115.17,34.52]
[1744257080397,16.0261663,115.22,115.17,59.1985663]
[1744257080599,15.9961663,115.21,115.17,43.2024]
[1744257080800,16.0261663,115.22,115.17,43.2024]
[1744257081000,16.0261663,115.22,115.17,59.1985663]
[1744257081303,24.7053663,115.22,115.17,43.2024]
[1744257082319,24.7051663,115.22,115.17,43.2024]
[1744257082504,15.9961663,115.2,115.17,8.52]
[1744257082704,15.9961663,115.21,115.17,17.2025]
[1744257085022,24.7051663,115.22,115.17,17.2025]
[1744257085922,15.9961663,115.21,115.17,8.52]
[1744257086125,15.9961663,115.19,115.14,81.2]
[1744257086308,15.9961663,115.18,115.13,8.52]
[1744257086497,15.9961663,115.19,115.14,8.6846]
[1744257086704,15.9961663,115.19,115.14,24.6807663]
[1744257086910,46.4027663,115.22,115.14,24.6807663]
[1744257087103,15.9961663,115.19,115.14,24.6807663]
[1744257087303,15.9961663,115.19,115.14,8.6846]
[1744257087500,15.9961663,115.19,115.14,24.6807663]
[1744257087701,8.99332314,115.22,115.15,15.9961663]
[1744257087901,8.99332314,115.22,115.16,8.6835]
[1744257088123,15.9961663,115.21,115.16,24.6796663]
[1744257088611,15.9961663,115.2,115.15,8.6839]
[1744257088805,15.9961663,115.19,115.14,105.8807663]
[1744257089141,15.9961663,115.18,115.13,17.2055]
[1744257089321,15.9961663,115.17,115.13,8.52]
[1744257089501,15.9961663,115.17,115.13,17.2057]
[1744257089701,15.9961663,115.18,115.13,33.2018663]
[1744257089906,24.6782663,115.18,115.13,33.2018663]
[1744257090723,26.2639663,115.19,115.13,33.2018663]
[1744257091123,26.2639663,115.19,115.14,15.9961663]
[1744257091316,26.2639663,115.19,115.13,17.2057]
[1744257091498,26.2639663,115.19,115.13,33.2018663]
[1744257091821,15.9961663,115.19,115.14,15.9961663]
[1744257092007,15.9961663,115.2,115.15,15.9961663]
[1744257093325,24.6767663,115.2,115.16,8.6835]
[1744257093725,1.90052314,115.22,115.16,8.6835]
[1744257094028,24.6760663,115.21,115.16,24.6796663]
[1744257094228,24.6760663,115.21,115.16,8.6835]
[1744257094428,15.9961663,115.2,115.16,8.6835]
[1744257095832,43.32571516,115.21,115.16,8.6835]
[1744257096030,15.9961663,115.19,115.13,89.72]
[1744257096235,15.9961663,115.16,115.12,0.063]
[1744257096427,15.9961663,115.15,115.12,0.063]
[1744257097010,15.9961663,115.16,115.12,0.063]
[1744257097226,15.9961663,115.15,115.12,0.063]
[1744257097811,24.6796663,115.16,115.12,0.063]
[1744257098432,15.9961663,115.15,115.12,0.063]
[1744257098628,15.9961663,115.14,115.12,0.063]
[1744257099914,24.6817663,115.14,115.12,0.063]
[1744257100111,8.6856,115.14,115.12,0.063]
[1744257100316,24.6817663,115.14,115.12,0.063]
[1744257100739,43.6146383,115.15,115.12,0.063]
[1744257101035,24.6800663,115.16,115.12,0.063]
[1744257101226,8.6839,115.16,115.12,16.0591663]
[1744257101544,14.9663,115.18,115.13,15.9961663]
[1744257101747,30.9624663,115.18,115.13,15.9961663]
[1744257102118,30.9624663,115.18,115.13,24.6815663]
[1744257102539,15.9961663,115.17,115.13,8.6854]
[1744257102920,8.6824,115.18,115.13,24.6815663]
[1744257103252,15.9961663,115.18,115.13,24.6815663]
[1744257103543,24.6783663,115.18,115.13,24.6815663]
[1744257107122,24.6783663,115.18,115.12,8.7493]
[1744257107327,15.9961663,115.16,115.12,0.063]
[1744257108337,8.6843,115.15,115.12,0.063]
[1744257108542,24.6804663,115.15,115.12,0.063]
[1744257111245,34.64581516,115.18,115.12,16.0591663]
[1744257112235,8.6831,115.17,115.13,15.9961663]
[1744257112431,24.6785663,115.18,115.13,15.9961663]
[1744257112835,24.6759663,115.21,115.16,15.9961663]
[1744257113343,8.6798,115.21,115.17,15.9961663]
[1744257114239,0.03,115.22,115.17,15.9961663]
[1744257114240,0.03,115.22,115.19,15.9961663]
[1744257114547,0.03,115.22,115.19,24.6768663]
[1744257115649,0.03,115.22,115.2,15.9961663]
[1744257115826,0.03,115.22,115.19,24.6768663]
[1744257119360,0.03,115.22,115.18,46.3823663]
[1744257121148,0.03,115.22,115.19,15.9961663]
[1744257121345,0.03,115.22,115.21,8.6798]
[1744257121740,16.0261663,115.22,115.17,8.52]
[1744257121944,15.9961663,115.19,115.17,8.52]
[1744257122554,0.03,115.22,115.17,8.52]
[1744257122853,15.9961663,115.19,115.17,8.52]
[1744257125347,24.6772663,115.2,115.17,8.52]
[1744257125853,15.9961663,115.2,115.17,17.2027]
[1744257126054,24.6762663,115.21,115.17,17.2027]
[1744257126240,15.9961663,115.2,115.17,8.52]
[1744257126753,8.6813,115.19,115.17,8.52]
[1744257128337,24.6770663,115.2,115.17,8.52]
[1744257128545,24.6762663,115.21,115.17,17.2027]
[1744257128743,8.6801,115.21,115.17,17.2027]
[1744257128950,24.6762663,115.21,115.17,17.2027]
[1744257129152,24.6762663,115.21,115.17,8.52]
[1744257129956,0.03,115.22,115.18,15.9961663]
[1744257130553,0.03,115.22,115.2,8.6805]
[1744257130748,0.03,115.22,115.18,15.9961663]
[1744257130952,0.03,115.22,115.17,105.7161663]
[1744257131856,8.709,115.22,115.17,105.7161663]
[1744257132060,24.7051663,115.22,115.17,105.7161663]
[1744257132960,24.7051663,115.22,115.17,114.3984663]
[1744257133758,0.03,115.22,115.17,114.3984663]
[1744257133960,16.0261663,115.22,115.17,33.1984663]
[1744257134948,16.0261663,115.22,115.17,17.2023]
[1744257135149,15.9961663,115.21,115.17,17.2023]
[1744257136658,24.6759663,115.21,115.17,17.2023]
[1744257136839,15.9961663,115.2,115.17,8.52]
[1744257137238,8.6798,115.21,115.17,8.52]
[1744257137239,15.9961663,115.21,115.17,17.2027]
[1744257138259,24.7054663,115.22,115.17,17.2027]
[1744257139749,15.9961663,115.21,115.17,17.2027]
[1744257140860,24.6760663,115.21,115.17,17.2027]
[1744257141965,15.9961663,115.2,115.17,8.52]
[1744257142263,15.9961663,115.19,115.13,24.4961663]
[1744257142868,8.682,115.18,115.14,8.6846]
[1744257143848,24.6781663,115.18,115.13,17.1854]
[1744257144048,15.9961663,115.17,115.13,8.5]
[1744257145163,8.6835,115.16,115.13,8.5]
[1744257145545,24.6793663,115.17,115.13,17.1857]
[1744257145862,8.6822,115.18,115.13,33.1818663]
[1744257146243,24.6783663,115.18,115.13,33.1818663]
[1744257147252,8.6822,115.18,115.13,33.1818663]
[1744257147458,24.6783663,115.18,115.13,33.1818663]
[1744257152363,15.9961663,115.17,115.13,8.5]
[1744257152548,22.4820663,115.16,115.13,8.5]
[1744257152744,15.9961663,115.15,115.13,8.5]
[1744257152944,15.9961663,115.14,115.12,0.063]
[1744257153160,34.9301383,115.13,115.12,0.063]
[1744257154069,43.6159383,115.13,115.12,0.063]
[1744257155769,24.6819663,115.13,115.12,0.063]
[1744257156071,8.6858,115.13,115.12,0.063]
[1744257156756,27.33504886,115.14,115.12,0.063]
[1744257156954,43.33121516,115.14,115.12,0.063]
[1744257157349,24.96488944,115.15,115.12,0.063]
[1744257157556,8.96872314,115.15,115.12,0.063]
[1744257157863,27.618372,115.15,115.12,0.063]
[1744257165048,31.1659663,115.16,115.12,0.063]
[1744257167354,34.9301383,115.15,115.12,0.063]
[1744257168897,18.933972,115.13,115.12,0.063]
[1744257169180,45.2160383,115.13,115.12,0.063]
[1744257169396,39.48094379,115.13,115.12,0.063]
[1744257171715,29.219872,115.13,115.12,0.063]
[1744257172062,39.48094379,115.13,115.12,0.063]
[1744257173281,45.24440404,115.13,115.12,0.063]
[1744257174582,29.219872,115.13,115.12,0.063]
[1744257176507,27.619772,115.13,115.12,0.063]
[1744257178107,8.685,115.14,115.12,0.063]
[1744257178813,27.33424886,115.15,115.12,0.063]
[1744257180204,8.6846,115.15,115.12,0.063]
[1744257180397,27.33424886,115.15,115.12,0.063]
[1744257181001,8.6842,115.16,115.12,16.08753204]
[1744257181186,27.33164886,115.18,115.14,16.02453204]
[1744257181884,8.6805,115.2,115.16,16.02453204]
[1744257184088,8.6801,115.21,115.17,8.6828]
[1744257184298,27.32974886,115.21,115.17,8.6828]
[1744257184681,27.35894886,115.22,115.18,16.02453204]
[1744257185183,0.17216157,115.22,115.18,16.02453204]
[1744257185388,18.82181043,115.22,115.18,16.02453204]
[1744257185779,0.03,115.22,115.18,16.02453204]
[1744257186193,0.03,115.22,115.19,8.6813]
[1744257186393,0.03,115.22,115.19,24.70583204]
[1744257186677,0.03,115.22,115.19,8.6813]
[1744257187380,16.02453204,115.21,115.16,26.13893204]
[1744257187586,16.02453204,115.21,115.16,18.7979]
[1744257187790,16.02453204,115.21,115.16,34.82243204]
[1744257187992,16.16669361,115.21,115.16,34.82243204]
[1744257188191,8.6805,115.2,115.16,34.82243204]
[1744257188812,8.82226157,115.21,115.16,34.82243204]
[1744257191028,0.14216157,115.19,115.16,8.48]
[1744257191322,16.02453204,115.18,115.13,114.08453204]
[1744257191487,16.16669361,115.19,115.13,32.88453204]
[1744257192110,16.16669361,115.19,115.14,16.02453204]
[1744257192992,8.682,115.18,115.14,24.70943204]
[1744257193998,8.682,115.18,115.14,8.6849]
[1744257194331,16.02453204,115.17,115.13,1.6344]
[1744257195127,8.6835,115.16,115.12,24.56753204]
[1744257195300,10.25146343,115.15,115.12,8.543]
[1744257196122,8.6835,115.16,115.12,8.543]
[1744257196123,18.93496343,115.16,115.12,8.543]
[1744257196421,16.38616343,115.18,115.13,10.25146343]
[1744257196635,8.6823,115.18,115.13,10.25146343]
[1744257196935,37.72487386,115.19,115.14,10.25146343]
[1744257197105,8.685,115.14,115.12,0.063]
[1744257198017,27.47611043,115.15,115.12,0.063]
[1744257198222,24.70536448,115.15,115.12,0.063]
[1744257198536,8.6843,115.15,115.12,0.063]
[1744257199912,8.6839,115.16,115.12,16.08406448]
[1744257200812,8.6839,115.16,115.12,0.063]
[1744257205408,8.6813,115.19,115.12,96.0345]
[1744257205717,8.6813,115.19,115.14,16.02106448]
[1744257206518,8.6813,115.19,115.14,24.70566448]
[1744257209209,25.068672,115.21,115.15,16.02106448]
[1744257209210,49.77023648,115.21,115.15,16.02106448]
[1744257209523,8.6805,115.21,115.16,26.11056448]
[1744257209706,8.6805,115.21,115.17,16.02106448]
[1744257210429,8.6805,115.21,115.17,8.6826]
[1744257214629,27.642972,115.22,115.17,8.6826]
[1744257214809,43.66403648,115.22,115.17,8.6826]
[1744257215732,43.66403648,115.22,115.16,34.79366448]
[1744257216432,16.02106448,115.21,115.16,34.79366448]
[1744257216620,27.642972,115.22,115.16,10.0895]
[1744257216621,24.70236448,115.19,115.16,10.0895]
[1744257216937,24.70236448,115.19,115.16,8.46]
[1744257218322,8.6813,115.19,115.16,8.46]
[1744257218633,21.7009,115.21,115.16,8.46]
[1744257218838,8.6799,115.21,115.16,33.16446448]
[1744257219322,8.6799,115.21,115.16,27.38455054]
[1744257220533,10.24115054,115.21,115.16,27.38455054]
[1744257221338,18.95015054,115.22,115.16,27.38455054]
[1744257221557,37.5997994,115.22,115.16,27.38455054]
[1744257223248,27.35864886,115.22,115.16,27.38455054]
[1744257223537,37.5997994,115.22,115.16,18.70115054]
[1744257224112,18.95015054,115.22,115.16,18.70115054]
[1744257225945,10.24115054,115.21,115.16,18.70115054]